[Event "Turkish Women-ch Arzum 2022"]
[Site "Ayvalik"]
[Date "2022.03.05"]
[Round "1.32"]
[White "Tanir, Simay"]
[Black "Ozturk, Busra"]
[Result "1-0"]
[ECO "A65"]
[WhiteElo "1510"]
[BlackElo "1100"]
[Annotator "NA"]
[PlyCount "59"]
[EventDate "2022.03.04"]
[EventType "swiss"]
[EventCountry "TUR"]
[SourceTitle "playchess.com"]
[Source "ChessBase"]
[SourceQuality "1"]
[TimeControl "5400+30"]

1. d4 {[%emt 0:01:00]} d6 {[%emt 0:01:00]} 2. c4 {[%emt 0:00:30]} Nf6 {[%emt 0:00:30]} 3. Nc3 {[%emt 0:00:00]} g6 {[%emt 0:00:30]} 4. e4 {[%emt 0:00:00]} Bg7 {[%emt 0:00:00]} 5. Nge2 {[%emt 0:00:30]} O-O {[%emt 0:00:00]} 6. f3 {[%emt 0:00:30]} c5 {[%emt 0:02:30]} 7. d5 {[%emt 0:00:30]} Nbd7 {[%emt 0:01:30]} 8. Be3 {[%emt 0:02:30]} Ne5 {[%emt 0:01:30]} 9. Nc1 {[%emt 0:03:30]} e6 {[%emt 0:02:30]} 10. Qd2 {[%emt 0:03:30]} Re8 {[%emt 0:03:30]} 11. Be2 {[%emt 0:01:30]} exd5 {[%emt 0:02:30]} 12. cxd5 {[%emt 0:02:30]} a6 {[%emt 0:04:30]} 13. a4 {[%emt 0:02:30]} Bd7 {[%emt 0:09:30]} 14. O-O {[%emt 0:01:30]} Nh5 {[%emt 0:06:30]} 15. g4 {[%emt 0:09:30]} Nf6 {[%emt 0:04:30]} 16. h3 {[%emt 0:05:30]} h5 {[%emt 0:05:30]} 17. f4 {[%emt 0:05:30]} Nexg4 {[%emt 0:02:30]} 18. hxg4 {[%emt 0:00:30]} Bxg4 {[%emt 0:00:30]} 19. Bd3 {[%emt 0:13:30]} Nh7 {[%emt 0:08:30]} 20. Qf2 {[%emt 0:03:30]} Qd7 {[%emt 0:04:30]} 21. Nb3 {[%emt 0:04:30]} Bh3 {[%emt 0:00:30]} 22. Rfe1 {[%emt 0:02:30]} Qg4+ {[%emt 0:10:30]} 23. Kh2 {[%emt 0:03:30]} Qd7 {[%emt 0:01:30]} 24. Qg3 {[%emt 0:06:30]} Bf6 {[%emt 0:05:30]} 25. Qxh3 {[%emt 0:02:30]} Qxh3+ {[%emt 0:00:30]} 26. Kxh3 {[%emt 0:00:30]} g5 {[%emt 0:04:46]} 27. fxg5 {[%emt 0:03:30]} Nxg5+ {[%emt 0:00:49]} 28. Bxg5 {[%emt 0:00:30]} Bxg5 {[%emt 0:00:00]} 29. Rg1 {[%emt 0:00:30]} Re5 {[%emt 0:00:00]} 30. Nd2 {[%emt 0:00:00]} 1-0

[Event "Turkish Women-ch Arzum 2022"]
[Site "Ayvalik"]
[Date "2022.03.05"]
[Round "1.33"]
[White "Kum, Busra"]
[Black "Gulceken, Sumeyye"]
[Result "0-1"]
[ECO "B13"]
[WhiteElo "1062"]
[BlackElo "1591"]
[Annotator "NA"]
[PlyCount "72"]
[EventDate "2022.03.04"]
[EventType "swiss"]
[EventCountry "TUR"]
[SourceTitle "playchess.com"]
[Source "ChessBase"]
[SourceQuality "1"]
[TimeControl "5400+30"]

1. e4 {[%emt 0:01:00]} c6 {[%emt 0:01:00]} 2. d4 {[%emt 0:00:30]} d5 {[%emt 0:00:00]} 3. exd5 {[%emt 0:00:00]} cxd5 {[%emt 0:00:00]} 4. Bd3 {[%emt 0:00:00]} Nf6 {[%emt 0:00:30]} 5. c3 {[%emt 0:00:30]} e6 {[%emt 0:00:30]} 6. Nf3 {[%emt 0:01:30]} Bd6 {[%emt 0:00:00]} 7. Bg5 {[%emt 0:01:30]} h6 {[%emt 0:00:00]} 8. Bh4 {[%emt 0:01:30]} Nbd7 {[%emt 0:01:30]} 9. Nbd2 {[%emt 0:06:30]} Qb6 {[%emt 0:01:30]} 10. Qc2 {[%emt 0:01:30]} e5 {[%emt 0:02:30]} 11. dxe5 {[%emt 0:04:30]} Nxe5 {[%emt 0:00:30]} 12. Nxe5 {[%emt 0:01:30]} Bxe5 {[%emt 0:00:30]} 13. Nf3 {[%emt 0:00:30]} Bc7 {[%emt 0:01:30]} 14. Qe2+ {[%emt 0:06:30]} Be6 {[%emt 0:01:30]} 15. Bb5+ {[%emt 0:02:30]} Nd7 {[%emt 0:02:30]} 16. O-O {[%emt 0:08:30]} O-O {[%emt 0:03:30]} 17. Nd4 {[%emt 0:01:30]} Nc5 {[%emt 0:05:30]} 18. a4 {[%emt 0:00:30]} a6 {[%emt 0:16:30]} 19. a5 {[%emt 0:02:30]} Qa7 {[%emt 0:00:30]} 20. Bd3 {[%emt 0:08:30]} Rae8 {[%emt 0:05:30]} 21. Bb1 {[%emt 0:09:30]} Bd7 {[%emt 0:07:30]} 22. Qc2 {[%emt 0:05:30]} g6 {[%emt 0:04:30]} 23. b4 {[%emt 0:09:30]} Ne4 {[%emt 0:04:30]} 24. f3 {[%emt 0:01:30]} Ng5 {[%emt 0:03:30]} 25. Ba2 {[%emt 0:03:30]} Bc6 {[%emt 0:12:30]} 26. Bf2 {[%emt 0:01:30]} Qb8 {[%emt 0:00:30]} 27. h4 {[%emt 0:06:41]} Ne6 {[%emt 0:04:30]} 28. h5 {[%emt 0:03:26]} Nxd4 {[%emt 0:02:29]} 29. Bxd4 {[%emt 0:00:34]} Bh2+ {[%emt 0:05:57]} 30. Kh1 {[%emt 0:01:33]} Re6 {[%emt 0:04:12]} 31. g4 {[%emt 0:03:22]} Be5 {[%emt 0:01:20]} 32. Rae1 {[%emt 0:02:22]} Bxd4 {[%emt 0:05:08]} 33. Rxe6 {[%emt 0:00:19]} fxe6 {[%emt 0:00:18]} 34. Qxg6+ {[%emt 0:00:30]} Bg7 {[%emt 0:00:00]} 35. Qxe6+ {[%emt 0:00:18]} Kh8 {[%emt 0:00:19]} 36. Rf2 {[%emt 0:05:57]} d4 {[%emt 0:02:10]} 0-1

[Event "Turkish Women-ch Arzum 2022"]
[Site "Ayvalik"]
[Date "2022.03.06"]
[Round "2.1"]
[White "Atalik, Ekaterina"]
[Black "Kayis, Gulcan Sena"]
[Result "1-0"]
[ECO "D26"]
[WhiteElo "2415"]
[BlackElo "1597"]
[Annotator "NA"]
[PlyCount "61"]
[EventDate "2022.03.04"]
[EventType "swiss"]
[EventCountry "TUR"]
[SourceTitle "playchess.com"]
[Source "ChessBase"]
[SourceQuality "1"]
[TimeControl "5400+30"]

{[%evp 8,37,18,23,7,6,41,16,26,41,23,36,24,11,62,56,59,44,36,26,61,47,56,78,52,50,53,32,80,-1,32767,20]} 1. d4 Nf6 2. c4 e6 3. Nf3 {[%emt 0:02:00]} c5 {[%emt 0:01:00]} 4. e3 {[%emt 0:00:30]} cxd4 {[%emt 0:02:30]} 5. exd4 {[%emt 0:00:30]} d5 {[%emt 0:01:30]} 6. Nc3 {[%emt 0:00:30]} dxc4 {[%emt 0:00:30]} 7. Bxc4 {[%emt 0:00:30]} Be7 {[%emt 0:01:30]} 8. O-O {[%emt 0:00:30]} O-O {[%emt 0:01:30]} 9. Re1 {[%emt 0:02:30]} Nc6 {[%emt 0:02:30]} 10. a3 {[%emt 0:05:30]} Qa5 {[%emt 0:07:30]} 11. Be3 {[%emt 0:13:30]} a6 {[%emt 0:07:30]} 12. b4 {[%emt 0:03:30]} Qc7 {[%emt 0:02:30]} 13. Qd3 {[%emt 0:03:30]} Rd8 {[%emt 0:08:30]} 14. Rac1 {[%emt 0:02:30]} Bd7 {[%emt 0:06:30]} 15. Ba2 {[%emt 0:02:30]} Be8 {[%emt 0:09:30]} 16. Ne4 {[%emt 0:08:30]} Nd5 {[%emt 0:12:30]} 17. Neg5 {[%emt 0:03:30]} (17. Bd2 $16) 17... g6 {[%emt 0:04:30]} 18. Qe4 {[%emt 0:02:30]} ({White should play} 18. Bd2 $16) 18... h6 {[%emt 0:08:30] [#]} 19. Nxe6 $11 {[%emt 0:05:30]} fxe6 {[%emt 0:01:30]} 20. Bxh6 {[%emt 0:03:30]} Bf7 {[%emt 0:00:45]} 21. Ne5 {[%emt 0:02:30]} Nf6 {[%emt 0:02:52]} 22. Qb1 {[%emt 0:01:30]} Rd6 {[%emt 0:04:59]} 23. Nxg6 {[%emt 0:06:30]} Rxd4 {[%emt 0:03:32]} 24. Rxe6 {[%emt 0:06:30]} Rad8 {[%emt 0:04:45]} 25. Nxe7+ {[%emt 0:06:25]} Nxe7 {[%emt 0:00:08]} 26. Rxc7 {[%emt 0:01:43]} Rd1+ {[%emt 0:00:30]} 27. Re1 {[%emt 0:00:30]} Rxb1 {[%emt 0:00:30]} 28. Bxb1 {[%emt 0:00:00]} Ned5 {[%emt 0:00:35]} 29. Rxb7 {[%emt 0:01:05]} Nc3 {[%emt 0:00:39]} 30. h3 {[%emt 0:00:41]} Nfd5 {[%emt 0:01:09]} 31. Bg6 {[%emt 0:01:30]} 1-0

[Event "Turkish Women-ch Arzum 2022"]
[Site "Ayvalik"]
[Date "2022.03.06"]
[Round "2.2"]
[White "Isgenderova, Hayale"]
[Black "Kipik, Feyza"]
[Result "1-0"]
[ECO "B40"]
[WhiteElo "2202"]
[BlackElo "1603"]
[Annotator "NA"]
[PlyCount "95"]
[EventDate "2022.03.04"]
[EventType "swiss"]
[EventCountry "TUR"]
[SourceTitle "playchess.com"]
[Source "ChessBase"]
[SourceQuality "1"]
[TimeControl "5400+30"]

1. e4 c5 2. Nf3 e6 3. b3 {[%emt 0:01:00]} b6 {[%emt 0:02:00]} 4. Bb2 {[%emt 0:02:30]} Bb7 {[%emt 0:01:30]} 5. Bd3 {[%emt 0:00:30]} Nc6 {[%emt 0:02:30]} 6. a3 {[%emt 0:00:30]} d6 {[%emt 0:01:30]} 7. O-O {[%emt 0:01:30]} Nf6 {[%emt 0:01:30]} 8. c4 {[%emt 0:00:30]} Be7 {[%emt 0:01:30]} 9. Nc3 {[%emt 0:05:30]} Rg8 {[%emt 0:06:30]} 10. Qe2 {[%emt 0:14:30]} (10. Be2 $11) 10... g5 {[%emt 0:05:30]} 11. Nd5 {[%emt 0:00:30]} g4 {[%emt 0:31:30]} ({Much less strong is} 11... exd5 12. exd5 Nd4 13. Nxd4 cxd4 14. Bxd4 $16) 12. Nxe7 {[%emt 0:01:30]} Qxe7 {[%emt 0:03:30]} 13. Ne1 $1 {[%emt 0:00:30]} O-O-O {[%emt 0:05:30]} 14. f4 {[%emt 0:02:30]} e5 {[%emt 0:04:30]} 15. Nc2 {[%emt 0:06:30] [#]} (15. b4 $11 {remains equal.}) 15... Nd4 {[%emt 0:04:30]} (15... Nh5 $1 $17 16. fxe5 Nxe5) 16. Nxd4 {[%emt 0:06:30]} exd4 $15 {[%emt 0:01:30]} 17. e5 {[%emt 0:05:30]} Rde8 {[%emt 0:01:30]} 18. Rae1 {[%emt 0:00:30]} Nd7 {[%emt 0:03:30]} 19. Bxh7 {[%emt 0:10:30]} Rg7 {[%emt 0:00:30]} 20. Bf5 {[%emt 0:02:30]} Kb8 {[%emt 0:01:39]} 21. d3 {[%emt 0:07:30]} dxe5 {[%emt 0:02:47]} 22. Bc1 {[%emt 0:00:30]} f6 {[%emt 0:01:37]} 23. Be4 {[%emt 0:03:30]} Bxe4 {[%emt 0:02:34]} 24. Qxe4 {[%emt 0:00:00]} Rh8 {[%emt 0:00:15]} 25. g3 {[%emt 0:01:00]} Rgh7 {[%emt 0:00:51]} 26. Re2 {[%emt 0:00:30]} Rh5 {[%emt 0:00:57]} 27. fxe5 {[%emt 0:03:30]} Nxe5 {[%emt 0:03:07]} 28. Bf4 {[%emt 0:00:30]} a6 {[%emt 0:00:50]} 29. Bxe5+ {[%emt 0:05:34]} fxe5 {[%emt 0:03:26]} 30. Ref2 {[%emt 0:00:24]} R5h7 {[%emt 0:01:32]} 31. Qxg4 {[%emt 0:05:03]} Rg7 {[%emt 0:01:10]} 32. Qe4 {[%emt 0:00:16]} Rhg8 {[%emt 0:01:22]} 33. Rf5 {[%emt 0:02:48]} Re8 {[%emt 0:01:12]} 34. Kg2 {[%emt 0:00:04]} Qb7 {[%emt 0:01:47]} 35. Re1 {[%emt 0:01:11]} Rge7 {[%emt 0:00:39]} 36. Qxb7+ {[%emt 0:00:41]} Kxb7 {[%emt 0:00:03]} 37. Re4 {[%emt 0:00:35]} b5 {[%emt 0:00:23]} 38. h4 {[%emt 0:00:00]} bxc4 {[%emt 0:00:55]} 39. bxc4 {[%emt 0:00:00]} Kb6 {[%emt 0:00:36]} 40. Rf6+ {[%emt 0:00:30]} Re6 {[%emt 0:00:30]} 41. Rxe6+ {[%emt 0:00:30]} Rxe6 {[%emt 0:00:30]} 42. g4 {[%emt 0:00:30]} Ka5 {[%emt 0:00:30]} 43. g5 {[%emt 0:00:30]} Ka4 {[%emt 0:00:30]} 44. h5 {[%emt 0:00:30]} Kxa3 {[%emt 0:00:30]} 45. g6 {[%emt 0:00:30]} Kb3 {[%emt 0:00:30]} 46. g7 {[%emt 0:00:30]} Re8 {[%emt 0:00:30]} 47. h6 {[%emt 0:00:30]} a5 {[%emt 0:00:30]} 48. h7 {[%emt 0:00:00]} 1-0

[Event "Turkish Women-ch Arzum 2022"]
[Site "Ayvalik"]
[Date "2022.03.06"]
[Round "2.3"]
[White "Karatiken, Seray"]
[Black "Caglar, Sila"]
[Result "1/2-1/2"]
[ECO "D02"]
[WhiteElo "1717"]
[BlackElo "2200"]
[Annotator "NA"]
[PlyCount "145"]
[EventDate "2022.03.04"]
[EventType "swiss"]
[EventCountry "TUR"]
[SourceTitle "playchess.com"]
[Source "ChessBase"]
[SourceQuality "1"]
[TimeControl "5400+30"]

1. d4 d5 2. Nc3 {[%emt 0:00:30]} Nf6 {[%emt 0:03:30]} 3. Bf4 {[%emt 0:00:30]} e6 {[%emt 0:02:30]} 4. a3 {[%emt 0:07:30]} Be7 {[%emt 0:02:30]} 5. e3 {[%emt 0:05:30]} O-O {[%emt 0:01:30]} 6. Nf3 {[%emt 0:06:30]} c6 {[%emt 0:17:30]} 7. Bd3 {[%emt 0:01:30]} Nbd7 {[%emt 0:01:30]} 8. h3 {[%emt 0:08:30]} b5 {[%emt 0:02:30]} 9. O-O {[%emt 0:14:30]} a5 {[%emt 0:05:30]} 10. e4 {[%emt 0:07:30]} dxe4 {[%emt 0:07:30]} 11. Nxe4 {[%emt 0:00:30]} Ba6 {[%emt 0:04:30]} 12. Ne5 $14 {[%emt 0:10:30]} Qb6 {[%emt 0:16:30]} 13. Qf3 {[%emt 0:07:30]} Bb7 {[%emt 0:13:43]} 14. Bg5 {[%emt 0:09:37]} Rfe8 {[%emt 0:11:43]} 15. Bxf6 {[%emt 0:11:00]} Nxf6 {[%emt 0:00:19]} 16. Ng5 {[%emt 0:04:27]} c5 {[%emt 0:06:06]} 17. Qf4 {[%emt 0:01:20]} Rf8 {[%emt 0:00:50]} 18. dxc5 {[%emt 0:00:48]} Qxc5 {[%emt 0:00:23]} 19. Ne4 {[%emt 0:00:38]} Qd5 {[%emt 0:00:50]} 20. Nxf6+ {[%emt 0:01:11]} Bxf6 {[%emt 0:00:30]} 21. Nf3 {[%emt 0:00:00]} Bxb2 {[%emt 0:00:21]} 22. Rad1 {[%emt 0:00:51]} Qc6 {[%emt 0:00:49]} 23. Be2 {[%emt 0:00:29]} Bxa3 {[%emt 0:00:46]} 24. Qg3 {[%emt 0:00:24]} Rad8 {[%emt 0:00:14]} 25. Nd4 {[%emt 0:00:30]} Rxd4 {[%emt 0:00:30]} 26. Rxd4 {[%emt 0:00:30]} Be7 {[%emt 0:00:30]} 27. Rfd1 {[%emt 0:00:30]} Qxc2 {[%emt 0:00:30]} 28. Bxb5 {[%emt 0:00:30]} Bf6 {[%emt 0:00:30]} 29. Rd7 {[%emt 0:00:30]} Be4 {[%emt 0:00:30]} 30. Qa3 {[%emt 0:00:30]} Bh4 {[%emt 0:00:30]} 31. R7d2 {[%emt 0:00:00]} Qc7 {[%emt 0:00:20]} 32. Qa4 {[%emt 0:00:17]} f5 {[%emt 0:00:32]} 33. f3 {[%emt 0:00:33]} Bxf3 {[%emt 0:00:32]} 34. gxf3 {[%emt 0:00:36]} Qg3+ {[%emt 0:00:30]} 35. Rg2 {[%emt 0:00:00]} Qxf3 {[%emt 0:00:00]} 36. Rd3 {[%emt 0:00:56]} Qh5 {[%emt 0:00:36]} 37. Qxa5 {[%emt 0:01:07]} Bf6 {[%emt 0:00:30]} 38. Bc4 {[%emt 0:00:00]} Re8 {[%emt 0:00:39]} 39. Qb6 {[%emt 0:00:40]} Ra8 {[%emt 0:00:29]} 40. Qxe6+ {[%emt 0:00:14]} Kh8 {[%emt 0:00:00]} 41. Re3 {[%emt 0:01:10]} f4 {[%emt 0:00:36]} 42. Re1 {[%emt 0:00:18]} f3 {[%emt 0:00:00]} 43. Qe4 {[%emt 0:00:33]} Rd8 {[%emt 0:01:24]} 44. Rg3 {[%emt 0:00:48]} Bh4 {[%emt 0:00:40]} 45. Rxf3 {[%emt 0:00:55]} Bxe1 {[%emt 0:00:21]} 46. Qe7 {[%emt 0:00:00]} Qe8 {[%emt 0:00:45]} 47. Qxe8+ {[%emt 0:00:49]} Rxe8 {[%emt 0:00:02]} 48. Kg2 {[%emt 0:00:34]} Bh4 {[%emt 0:00:30]} 49. Rf4 {[%emt 0:00:25]} Bf6 {[%emt 0:00:13]} 50. Kf3 {[%emt 0:00:30]} Rf8 {[%emt 0:00:00]} 51. Kg4 {[%emt 0:00:00]} g6 {[%emt 0:00:00]} 52. Re4 {[%emt 0:00:19]} Kg7 {[%emt 0:00:33]} 53. Bb5 {[%emt 0:00:25]} h5+ {[%emt 0:00:51]} 54. Kg3 {[%emt 0:00:11]} Rb8 {[%emt 0:00:00]} 55. Bc4 {[%emt 0:01:07]} Rb2 {[%emt 0:01:19]} 56. Re3 {[%emt 0:00:28]} Bg5 {[%emt 0:01:20]} 57. Re2 {[%emt 0:01:13]} Rb4 {[%emt 0:00:30]} 58. Rc2 {[%emt 0:00:00]} Bf6 {[%emt 0:00:32]} 59. Bf1 {[%emt 0:00:00]} Rb3+ {[%emt 0:00:16]} 60. Kf4 {[%emt 0:00:24]} g5+ {[%emt 0:00:48]} 61. Ke4 {[%emt 0:00:07]} Rg3 {[%emt 0:00:28]} 62. Bg2 {[%emt 0:00:22]} Kg6 {[%emt 0:00:56]} 63. Ra2 {[%emt 0:00:30]} h4 {[%emt 0:00:00]} 64. Rc2 {[%emt 0:00:20]} g4 {[%emt 0:00:05]} 65. hxg4 {[%emt 0:00:20]} Rxg4+ {[%emt 0:00:03]} 66. Kf3 {[%emt 0:00:35]} Rg3+ {[%emt 0:00:01]} 67. Kf4 {[%emt 0:00:35]} Bg5+ {[%emt 0:00:03]} 68. Ke4 {[%emt 0:00:37]} Re3+ {[%emt 0:00:30]} 69. Kd4 {[%emt 0:00:00]} h3 {[%emt 0:00:27]} 70. Bh1 {[%emt 0:00:31]} Kh5 {[%emt 0:00:19]} 71. Rc3 {[%emt 0:00:24]} Re1 {[%emt 0:01:39]} 72. Rxh3+ {[%emt 0:00:30]} Kg4 {[%emt 0:00:30]} 73. Rh7 {[%emt 0:00:00]} 1/2-1/2

[Event "Turkish Women-ch Arzum 2022"]
[Site "Ayvalik"]
[Date "2022.03.06"]
[Round "2.4"]
[White "Alagoz, Zumra Meryem"]
[Black "Sahin, Hayrun Nisa"]
[Result "0-1"]
[ECO "C64"]
[WhiteElo "1573"]
[BlackElo "2014"]
[Annotator "NA"]
[PlyCount "81"]
[EventDate "2022.03.04"]
[EventType "swiss"]
[EventCountry "TUR"]
[SourceTitle "playchess.com"]
[Source "ChessBase"]
[SourceQuality "1"]
[TimeControl "5400+30"]

1. e4 {[%emt 0:01:00]} e5 {[%emt 0:06:00]} 2. Nf3 {[%emt 0:00:30]} Nc6 {[%emt 0:00:30]} 3. Bb5 {[%emt 0:03:30]} Bc5 {[%emt 0:02:30]} 4. O-O {[%emt 0:01:30]} d6 {[%emt 0:00:00]} 5. d4 {[%emt 0:06:30]} exd4 {[%emt 0:04:00]} 6. Nxd4 {[%emt 0:03:30]} Bd7 {[%emt 0:02:30]} 7. Nf5 {[%emt 0:22:30]} g6 {[%emt 0:06:30]} (7... Bxf5 $5 8. exf5 (8. Bxc6+ bxc6 9. exf5 Qf6 $11) 8... Qf6 $11) 8. Ne3 {[%emt 0:02:30]} (8. Bxc6 $5 bxc6 9. Nd4 $11) 8... Qh4 {[%emt 0:04:30]} ({Black should play} 8... Nf6 $14) 9. Nd5 {[%emt 0:09:30]} O-O-O {[%emt 0:02:30]} 10. Nbc3 {[%emt 0:07:30]} Rf8 $18 {[%emt 0:22:30]} ({Black should try} 10... Nge7 $1 $14) 11. Bxc6 {[%emt 0:17:30]} bxc6 {[%emt 0:02:30]} 12. b4 {[%emt 0:01:50]} cxd5 {[%emt 0:15:30]} 13. bxc5 {[%emt 0:00:06]} Nf6 {[%emt 0:00:00]} 14. Nxd5 {[%emt 0:06:09]} Nxe4 {[%emt 0:03:00]} 15. cxd6 {[%emt 0:06:06]} Nxd6 {[%emt 0:03:30]} 16. Bf4 {[%emt 0:01:11]} Bb5 {[%emt 0:04:14]} 17. Re1 {[%emt 0:00:55]} Rd8 {[%emt 0:00:30]} 18. Qf3 {[%emt 0:02:20]} Rhe8 {[%emt 0:07:13]} 19. Qc3 {[%emt 0:02:29]} c6 {[%emt 0:02:58]} 20. Rxe8 {[%emt 0:01:46]} Nxe8 {[%emt 0:00:14]} 21. Bg3 {[%emt 0:00:12]} Qe4 {[%emt 0:01:53]} 22. Ne3 {[%emt 0:00:50]} f5 {[%emt 0:01:40]} 23. Qe5 {[%emt 0:00:37]} Qxe5 {[%emt 0:00:50]} 24. Bxe5 {[%emt 0:00:06]} Rd7 {[%emt 0:01:24]} 25. Rd1 {[%emt 0:01:00]} Re7 {[%emt 0:00:11]} 26. Bf4 {[%emt 0:00:21]} Ng7 {[%emt 0:01:08]} 27. c4 {[%emt 0:00:40]} Ba6 {[%emt 0:02:01]} 28. h3 {[%emt 0:00:40]} Ne6 {[%emt 0:00:30]} 29. Be5 {[%emt 0:00:30]} f4 {[%emt 0:00:30]} 30. Ng4 {[%emt 0:00:30]} Bxc4 {[%emt 0:00:30]} 31. Bf6 {[%emt 0:00:30]} Re8 {[%emt 0:00:30]} 32. Ne5 {[%emt 0:00:30]} Bd5 {[%emt 0:00:30]} 33. Nd3 {[%emt 0:00:46]} Rf8 {[%emt 0:01:06]} 34. Be5 {[%emt 0:00:24]} Be4 {[%emt 0:02:08]} 35. Nc1 {[%emt 0:01:13]} Rf5 {[%emt 0:00:33]} 36. Bd6 {[%emt 0:00:08]} Bd5 {[%emt 0:00:29]} 37. Nd3 {[%emt 0:00:28]} Nd4 {[%emt 0:01:14]} 38. Bc5 {[%emt 0:00:52]} Ne2+ {[%emt 0:00:24]} 39. Kf1 {[%emt 0:00:00]} Nc3 {[%emt 0:00:06]} 40. Rc1 {[%emt 0:00:44]} Bc4 {[%emt 0:01:02]} 41. Ke1 {[%emt 0:01:07]} 0-1

[Event "Turkish Women-ch Arzum 2022"]
[Site "Ayvalik"]
[Date "2022.03.06"]
[Round "2.5"]
[White "Kucuk, Aybike"]
[Black "Acarbay, Algi"]
[Result "1/2-1/2"]
[ECO "B27"]
[WhiteElo "1439"]
[BlackElo "1992"]
[Annotator "NA"]
[PlyCount "166"]
[EventDate "2022.03.04"]
[EventType "swiss"]
[EventCountry "TUR"]
[SourceTitle "playchess.com"]
[Source "ChessBase"]
[SourceQuality "1"]
[TimeControl "5400+30"]

1. e4 c5 2. Nf3 g6 3. d4 cxd4 4. Qxd4 Nf6 5. e5 Nc6 6. Qa4 Nd5 7. Qe4 Ndb4 8. Bb5 $1 {[%emt 0:03:30]} Bg7 {[%emt 0:22:30]} 9. Nc3 {[%emt 0:05:30]} O-O {[%emt 0:04:30]} 10. O-O {[%emt 0:11:30]} (10. a3 $11 d5 11. Qe2) 10... d5 {[%emt 0:13:30]} 11. exd6 $1 {[%emt 0:13:30]} Qxd6 {[%emt 0:01:30]} 12. Bxc6 {[%emt 0:06:30]} (12. Bg5 $11 {remains equal.}) 12... Nxc6 {[%emt 0:02:30]} 13. Be3 {[%emt 0:05:30]} Bf5 {[%emt 0:07:30]} 14. Qa4 {[%emt 0:06:30]} Qb4 {[%emt 0:07:30]} 15. Qxb4 {[%emt 0:04:30]} Nxb4 {[%emt 0:00:30]} 16. Bd4 {[%emt 0:01:30]} Nxc2 {[%emt 0:04:30]} 17. Bxg7 $17 {[%emt 0:00:30]} Kxg7 {[%emt 0:00:30]} 18. Rad1 {[%emt 0:08:30]} Rfd8 {[%emt 0:01:30]} 19. Rxd8 {[%emt 0:03:30]} Rxd8 {[%emt 0:00:30]} 20. a3 {[%emt 0:01:30]} Nd4 {[%emt 0:04:30]} 21. Ne5 {[%emt 0:07:30]} f6 {[%emt 0:01:30]} 22. Nf3 {[%emt 0:02:16]} Nxf3+ {[%emt 0:00:30]} 23. gxf3 {[%emt 0:00:01]} Rd2 {[%emt 0:00:30]} 24. Re1 {[%emt 0:03:25]} Kf7 {[%emt 0:01:30]} 25. Re2 {[%emt 0:00:58]} Rxe2 {[%emt 0:00:30]} 26. Nxe2 {[%emt 0:00:02]} Ke6 {[%emt 0:00:00]} 27. Nc3 {[%emt 0:01:04]} Bd3 {[%emt 0:05:00]} 28. f4 {[%emt 0:01:52]} Kf5 {[%emt 0:01:30]} 29. Kg2 {[%emt 0:06:15]} Be4+ {[%emt 0:06:19]} 30. Kg3 {[%emt 0:02:27]} Bc6 {[%emt 0:00:10]} 31. f3 {[%emt 0:01:47]} Ke6 {[%emt 0:01:49]} 32. Kf2 {[%emt 0:01:21]} Kd6 {[%emt 0:00:36]} 33. b4 {[%emt 0:00:27]} a6 {[%emt 0:05:09]} 34. h4 {[%emt 0:02:30]} e5 {[%emt 0:01:14]} 35. fxe5+ {[%emt 0:00:56]} Kxe5 {[%emt 0:00:12]} 36. Ke3 {[%emt 0:00:33]} g5 {[%emt 0:00:19]} 37. hxg5 {[%emt 0:01:20]} fxg5 {[%emt 0:00:02]} 38. Ne2 {[%emt 0:00:22]} h5 {[%emt 0:01:35]} 39. f4+ {[%emt 0:01:43]} Kf5 {[%emt 0:02:01]} 40. fxg5 {[%emt 0:01:03]} Kxg5 {[%emt 0:00:06]} 41. Nd4 {[%emt 0:00:05]} Kg4 {[%emt 0:00:23]} 42. Kf2 {[%emt 0:00:19]} h4 {[%emt 0:02:46]} 43. Kg1 {[%emt 0:00:36]} h3 {[%emt 0:00:46]} 44. Kh2 {[%emt 0:00:04]} Bg2 {[%emt 0:00:06]} 45. a4 {[%emt 0:01:29]} Kf4 {[%emt 0:00:19]} 46. b5 {[%emt 0:00:02]} a5 {[%emt 0:01:20]} 47. b6 {[%emt 0:00:16]} Bd5 {[%emt 0:03:05]} 48. Kxh3 {[%emt 0:00:37]} Ke4 {[%emt 0:01:03]} 49. Nb5 {[%emt 0:00:08]} Kd3 {[%emt 0:00:23]} 50. Kg4 {[%emt 0:00:42]} Bc6 {[%emt 0:01:22]} 51. Nd6 {[%emt 0:00:46]} Kc3 {[%emt 0:00:11]} 52. Kf4 {[%emt 0:00:40]} Kb4 {[%emt 0:00:08]} 53. Ke3 {[%emt 0:00:41]} Kxa4 {[%emt 0:00:10]} 54. Kd2 {[%emt 0:00:00]} Kb3 {[%emt 0:02:13]} 55. Kc1 {[%emt 0:00:04]} Ka2 {[%emt 0:00:28]} 56. Kc2 {[%emt 0:00:44]} a4 {[%emt 0:00:26]} 57. Kc1 {[%emt 0:00:45]} a3 {[%emt 0:01:00]} 58. Kc2 {[%emt 0:00:08]} Bd5 {[%emt 0:00:14]} 59. Nb5 {[%emt 0:00:41]} Be4+ {[%emt 0:00:31]} 60. Kc3 {[%emt 0:00:44]} Bc6 {[%emt 0:00:38]} 61. Nd4 {[%emt 0:00:21]} Be4 {[%emt 0:00:53]} 62. Nb5 {[%emt 0:00:15]} Bc6 {[%emt 0:00:10]} 63. Nd4 {[%emt 0:00:08]} Ba4 {[%emt 0:00:00]} 64. Nc2 {[%emt 0:00:58]} Bd7 {[%emt 0:01:26]} 65. Kb4 {[%emt 0:00:08]} Kb2 {[%emt 0:00:17]} 66. Nxa3 {[%emt 0:00:12]} Bc6 {[%emt 0:00:38]} 67. Nc4+ {[%emt 0:00:30]} Kc2 {[%emt 0:00:00]} 68. Ne5 {[%emt 0:00:02]} Be4 {[%emt 0:00:17]} 69. Kc5 {[%emt 0:00:30]} Kb3 {[%emt 0:00:00]} 70. Kd6 {[%emt 0:00:12]} Kb4 {[%emt 0:00:13]} 71. Kc7 {[%emt 0:00:00]} Kc5 {[%emt 0:00:16]} 72. Nf7 {[%emt 0:00:00]} Bg2 {[%emt 0:01:37]} 73. Nd6 {[%emt 0:00:00]} Kb4 {[%emt 0:00:19]} 74. Nxb7 {[%emt 0:00:00]} Kb5 {[%emt 0:00:17]} 75. Nd6+ {[%emt 0:00:11]} Ka6 {[%emt 0:00:11]} 76. Nc8 {[%emt 0:00:06]} Bb7 {[%emt 0:00:55]} 77. Na7 {[%emt 0:00:11]} Ba8 {[%emt 0:01:07]} 78. Nc6 {[%emt 0:01:02]} Kb5 {[%emt 0:00:16]} 79. Ne5 {[%emt 0:00:59]} Ka6 {[%emt 0:00:20]} 80. Nc4 {[%emt 0:00:00]} Bd5 {[%emt 0:00:29]} 81. Na3 {[%emt 0:00:12]} Ba8 {[%emt 0:00:39]} 82. Nc2 {[%emt 0:00:06]} Ka5 {[%emt 0:00:34]} 83. Na3 {[%emt 0:00:23]} Ka6 {[%emt 0:00:38]} 1/2-1/2